Cogmind - Beta 12 @@@ ROGUE MODE // 2023.07.19 @ 18:02:44 Player: ZOT Result: Destroyed by G-34 Mercenary with Small Laser Performance ------------- Evolutions (1) 500 Regions Visited (2) 400 Robots Destroyed (24) 120 Value Destroyed (544) 544 Prototype IDs (2) 40 Alien Tech Used (0) 0 Bonus (0) 0 TOTAL SCORE: 1604 Bonus ------- None Cogmind --------- Core Integrity 0/400 Matter 300/300 Energy 100/100 System Corruption 8% Temperature Hot (257) Movement Core (50) Location -9/Materials Parts ------- > --- POWER (1) -------- (None) > --- PROPULSION (4) --- (None) > --- UTILITY (2) ------ (None) > --- WEAPON (2) ------- (None) > --- INVENTORY (5) ---- Ion Engine Improved Ion Engine Aluminum Leg Mining Laser Peak State ------------ > --- POWER ------------ Improved Ion Engine > --- PROPULSION ------- Aluminum Leg Aluminum Leg Aluminum Leg Improved Aluminum Leg > --- UTILITY ---------- Improved Targeting Computer > --- WEAPON ----------- Beam Rifle Katana > --- INVENTORY -------- Ion Engine Improved Ion Engine Wheel Mining Laser [Rating: 14] Favorites ----------- Power Light Ion Engine Engine Light Ion Engine Propulsion Aluminum Leg Leg Aluminum Leg Wheel Wheel Flight Unit Flight Unit Utility Improved Terrain Scanner Device Improved Terrain Scanner Processor Improved Targeting Computer Weapon Assault Rifle Energy Gun Beam Rifle Ballistic Gun Assault Rifle Slashing Weapon Katana Build | -11 -10 -9 ------- Run | Jun Mat Mat Slots Evolved 2 | . . 2 Power . | . . . Propulsion 2 | . . 2 Utility . | . . . Weapon . | . . . Parts Attached 22 | 7 2 13 Power 4 | 1 . 3 Engine 4 | 1 . 3 Core . | . . . Reactor . | . . . Propulsion 10 | 2 1 7 Treads . | . . . Leg 7 | 2 1 4 Wheel 2 | . . 2 Hover . | . . . Flight 1 | . . 1 Utility 3 | 2 . 1 Device 2 | 2 . . Storage . | . . . Processor 1 | . . 1 Hackware . | . . . Protection . | . . . Artifact . | . . . Weapon 5 | 2 1 2 Energy Gun 1 | . . 1 Energy Cannon . | . . . Ballistic Gun 3 | 2 1 . Ballistic Cannon . | . . . Launcher . | . . . Special Weapon . | . . . Impact Weapon . | . . . Slashing Weapon 1 | . . 1 Piercing Weapon . | . . . Special Melee Weapon . | . . . Unidentified Prototypes . | . . . Parts Lost 15 | . 1 14 Power 2 | . 1 1 Propulsion 7 | . . 7 Utility 3 | . . 3 Weapon 3 | . . 3 Highest Loss Streak 6 | . 1 6 To Critical Strikes . | . . . Average Slot Usage (%) 83 | . 94 76 Engine 10 | . 8 11 Leg 27 | . 28 27 Wheel 3 | . . 6 Flight 1 | . . 1 Device 15 | . 28 6 Processor 3 | . . 5 Energy Gun 2 | . . 4 Ballistic Gun 14 | . 28 5 Slashing Weapon 4 | . . 7 Naked Turns 3 | . . 3 Heaviest Build 12 | 8 9 12 Greatest Support 20 | 20 20 13 Greatest Overweight (x) 3 | . . 3 Average Overweight (x) . | . . . Largest Inventory Capacity 5 | 5 5 5 Average Capacity 5 | 5 5 5 Most Carried 5 | 5 5 5 Average Carried 3 | 4 4 2 Final Capacity 5 | 5 5 5 Final Carried 5 | 5 5 4 Class Distribution -------------------- 76% | Mutant 23% | Scavenger-Mutant Dominant Class ---------------- Mutant | -10/Materials Scavenger-Mutant | -9/Materials Resources | -11 -10 -9 ----------- Run | Jun Mat Mat Matter Collected 617 | 358 111 148 Remotely . | . . . Salvage Created 959 | 237 143 579 Parts 55 | 18 8 29 Haulers Intercepted . | . . . Recyclers Shooed 1 | . . 1 Parts Field Recycled . | . . . Retrieved Matter . | . . . Parts Self-Destructed . | . . . Prevented . | . . . Kills | -11 -10 -9 ------- Run | Jun Mat Mat Combat Hostiles Destroyed 15 | . 4 11 Melee 7 | . . 7 Guns 8 | . 4 4 Classes Destroyed 6 | 2 1 3 Tunneler 6 | 6 . . Recycler 3 | 1 . 2 Swarmer 3 | . . 3 Grunt 8 | . 4 4 Duelist 1 | . . 1 Sentry 3 | . . 3 Best Kill Streak 4 | 2 2 4 Combat Bots Only 3 | . 2 3 Max Kills in Single Turn 1 | 1 1 1 Gunslinging . | . . . Exploded . | . . . Melee 1 | . . 1 Uniques/NPCs Destroyed . | . . . Combat | -11 -10 -9 -------- Run | Jun Mat Mat Damage Taken 1333 | . 254 1079 Core 411 | . 10 401 Absorbed by Shields . | . . . Core Remaining (%) 98 | 100 96 . Volleys Fired 70 | 28 16 26 Largest 2 | 2 2 2 Hottest 56 | 40 40 56 Shots Fired 111 | 48 32 31 Gun 111 | 48 32 31 Cannon . | . . . Launcher . | . . . Special . | . . . Kinetic 91 | 48 32 11 Thermal 20 | . . 20 Explosive . | . . . Electromagnetic . | . . . Robot Hit Streak 24 | 8 10 24 Robot Miss Streak 2 | 2 2 2 Penetration Max . | . . . Secondary Targets . | . . . Shots Hit Robots 101 | 32 22 47 Core Hits 39 | 13 8 18 Critical Kills . | . . . Critical Parts Destroyed . | . . . Critical Strikes 2 | . . 2 Burn 2 | . . 2 Melee Attacks 35 | . . 35 Impact . | . . . Slashing 35 | . . 35 Piercing . | . . . Sneak Attacks 3 | . . 3 Combat Hostiles . | . . . Follow-up Attacks . | . . . Damage Inflicted 1670 | 289 287 1094 Guns 942 | 289 287 366 Cannons . | . . . Explosions . | . . . Melee 728 | . . 728 Ramming . | . . . Kinetic 682 | 289 287 106 Thermal 260 | . . 260 Explosive . | . . . Electromagnetic . | . . . Impact . | . . . Slashing 728 | . . 728 Piercing . | . . . Highest Corruption 8 | . . 8 Average Corruption 8 | . . 8 Corruption Purged . | . . . Corruption Blocked . | . . . Overload Shots . | . . . Overflow Damage 55 | . . 55 Projectiles . | . . . Explosions . | . . . Melee 55 | . . 55 Knockbacks . | . . . Impact . | . . . Kinetic . | . . . Secondary . | . . . Self-Inflicted Damage . | . . . Shots . | . . . Rammed . | . . . Targets Rammed . | . . . Kicked . | . . . Crushed . | . . . Highest Temperature 336 | . . 336 Average Temperature 176 | . . 176 Received Heat Transfer 438 | . 138 300 Siege Activations . | . . . Robots Corrupted . | . . . Combat Hostiles . | . . . Parts Fried . | . . . Impact Corruptions . | . . . Robots Melted . | . . . Combat Hostiles . | . . . Parts Melted 5 | . . 5 Heat Transferred 814 | . . 814 Parts Sabotaged . | . . . Parts Stolen . | . . . Parts Stripped . | . . . Power Chain Reactions . | . . . Missiles Intercepted . | . . . Alert | -11 -10 -9 ------- Run | Jun Mat Mat Peak Influence 256 | 35 123 256 Initial 51 | . 22 51 Average 76 | 18 47 137 Maximum Alert Level 1 | . . 1 Low Security (%) 88 | 100 100 72 Level 1 11 | . . 27 Level 2 . | . . . Level 3 . | . . . Level 4 . | . . . Level 5 . | . . . High Security . | . . . Max Security . | . . . Squads Dispatched 2 | . 2 . Investigation 1 | . 1 . Extermination . | . . . Reinforcement 1 | . 1 . Assault . | . . . Garrison . | . . . Intercept . | . . . Searches Triggered . | . . . Construction Impeded . | . . . Haulers Reinforced . | . . . Active Scanning Responses . | . . . Cargo Convoy Interrupts . | . . . Stealth | -11 -10 -9 --------- Run | Jun Mat Mat Distress Signals 3 | . . 3 Communications Jammed . | . . . Distress Signals . | . . . Times Spotted 25 | . 5 20 Peak Tracking Total 9 | . 2 9 Tactical Retreats 1 | . . 1 Traps | -11 -10 -9 ------- Run | Jun Mat Mat Traps Triggered 1 | . 1 . Indirectly . | . . . Trap Hack Attempts . | . . . Triggered . | . . . Disarmed . | . . . Reprogrammed . | . . . Reused . | . . . Traps Extracted . | . . . Installed . | . . . Triggered . | . . . Machines | -11 -10 -9 ---------- Run | Jun Mat Mat Machines Disabled . | . . . Max in Single Turn . | . . . Machines Repaired . | . . . Machines Sabotaged . | . . . Overloaded Fab Kills . | . . . Hacking | -11 -10 -9 --------- Run | Jun Mat Mat Machines Accessed 5 | . 4 1 Terminals 4 | . 3 1 Fabricators . | . . . Repair Stations . | . . . Recycling Units 1 | . 1 . Scanalyzers . | . . . Garrison Access . | . . . Total Hacks 13 | . 10 3 Successful 7 | . 6 1 Failed 6 | . 4 2 Catastrophic . | . . . Database Lockouts . | . . . Manual 5 | . 5 . Terminals 11 | . 8 3 Fabricators . | . . . Repair Stations . | . . . Recycling Units 2 | . 2 . Scanalyzers . | . . . Garrison Access . | . . . Terminal Hacks 5 | . 4 1 Prototype ID Bank 1 | . . 1 Level Access Points 1 | . 1 . Locate Traps 1 | . 1 . Dispatch Records 1 | . 1 . Recall Investigation 1 | . 1 . Fabricator Hacks . | . . . Repair Station Hacks . | . . . Recycling Unit Hacks . | . . . Scanalyzer . | . . . Garrison Access Hacks . | . . . Unauthorized Hacks 2 | . 2 . Terminals . | . . . Fabricators . | . . . Repair Stations . | . . . Recycling Units 2 | . 2 . Monitor 1 | . 1 . Mask 1 | . 1 . Scanalyzers . | . . . Garrison Access . | . . . Data Cores Recovered . | . . . Used . | . . . Hacking Detections 4 | . 3 1 Full Trace Events . | . . . Feedback Events . | . . . Feedback Blocked . | . . . Robot Schematics Acquired . | . . . Robots Built . | . . . Authchips . | . . . Time . | . . . Total Robot Build Rating . | . . . Part Schematics Acquired . | . . . Parts Built . | . . . Authchips . | . . . Time . | . . . Total Part Build Rating . | . . . Parts Repaired . | . . . Time . | . . . Parts Recycled . | . . . Recycled Matter . | . . . Retrieved Matter . | . . . Retrieved Components . | . . . Parts Scanalyzed . | . . . Part Schematics Acquired . | . . . Parts Damaged . | . . . Bothacking | -11 -10 -9 ------------ Run | Jun Mat Mat Used RIF Installer . | . . . Robots Hacked . | . . . Non-combat . | . . . Combat . | . . . Robot Hacks Applied . | . . . Relay Couplers Released . | . . . Fabnet Peak Effective % . | . . . Robots Rewired . | . . . Allies Hacked . | . . . Hacks Repelled . | . . . Allies | -11 -10 -9 -------- Run | Jun Mat Mat Total Allies . | . . . Largest Group . | . . . Highest-Rated Group . | . . . Highest-Rated Ally . | . . . Total Orders . | . . . Ally Attacks . | . . . Total Damage . | . . . Kills . | . . . Allies Corrupted . | . . . Allies Melted . | . . . Intel | -11 -10 -9 ------- Run | Jun Mat Mat Robot Analysis Total . | . . . Derelict Logs Recovered . | . . . Drone Launches . | . . . Drone Recoveries . | . . . Exploration | -11 -10 -9 ------------- Run | Jun Mat Mat Turns Passed 875 | 251 256 368 Spaces Moved 398 | 140 147 111 Core 15 | 6 . 9 Treads . | . . . Legs 358 | 134 147 77 Wheels 25 | . . 25 Hover . | . . . Flight . | . . . Fastest Speed 50 | 50 120 95 Average Speed 122 | 117 120 133 Slowest Speed 200 | 120 120 200 Overloaded Moves . | . . . Propulsion Burnouts . | . . . Robots Hopped . | . . . Cave-ins Triggered . | . . . Exploration Rate (%) 17 | 5 35 13 Regions Visited 2 Branch Regions . Pre-discovered Areas . | . . . Known Exits Taken 1 | . 1 . Unknown Exits Taken 1 | 1 . . Scrap Searched . | . . . Spaces Dug . | . . . Terrain Destroyed . | . . . Melee . | . . . Projectile . | . . . AOE . | . . . Terrain Rammed . | . . . Walls Destroyed . | . . . Machines Disabled . | . . . Actions | -11 -10 -9 --------- Run | Jun Mat Mat Total 627 | 184 197 246 Wait 79 | . 27 52 Move 396 | 139 146 111 Hop . | . . . Pick Up 20 | 10 2 8 Fast Attach 2 | 2 . . Attach 15 | 5 . 10 Detach 1 | . . 1 Swap 5 | . 2 3 Drop 4 | . 4 . Fire 70 | 28 16 26 Melee 35 | . . 35 Ram . | . . . Kick . | . . . Crush . | . . . Escape Stasis . | . . . Rewire . | . . . Trap . | . . . Miscellaneous . | . . . Route ------- -11/Junkyard -10/Materials (discovered 4 exits: *Mat x3 / [*Min]) -9/Materials History --------- Turn | Location | Event 7 | -11/Junkyard | Discovered new exit (range 15) 252 | -11/Junkyard | Entered Materials 321 | -10/Materials | Build established: Mutant 336 | -10/Materials | Discovered new exit (range 16) 355 | -10/Materials | Identified exit to Materials 508 | -10/Materials | Entered another Materials area 508 | -9/Materials | Evolved 2 slots: Propulsion x2 667 | -9/Materials | Lost 4 parts (1n2u1w) 758 | -9/Materials | Core integrity fell below 50% 798 | -9/Materials | Lost 4 parts (3n1u) 859 | -9/Materials | Core integrity fell below 20% 876 | -9/Materials | Destroyed by G-34 Mercenary with Small Laser Last Messages --------------- 00844_ Aluminum Leg melted. 00844_ Heat Sink melted. 00844_ G-34 Mercenary destroyed. 00846_ Aluminum Leg destroyed. 00855_ Flight Unit destroyed. 00856_ Lgt. Armor Plating melted. 00856_ Imp. Ion Engine melted. 00856_ Heat Sink melted. 00856_ Y-45 Defender destroyed. 00858_ Knocked back. 00865_ Wheel destroyed. 00865_ Katana destroyed. 00865_ System corrupted by crushing effect (+3). 00865_ System corrupted by crushing effect (+5). 00866_ G-34 Mercenary suffers critical hit (Burn). 00870_ B-36 Bruiser destroyed. 00870_ G-34 Mercenary destroyed. 00872_ Beam Rifle destroyed. 00873_ Imp. Ion Engine destroyed. 00875_ Acquired Aluminum Leg. Map ----- +----------------------------------------------------+ | ?????????????????#########?????#?????????????????? | | ?????????????????# #?????#??#????????#?#???? | | ????????????????## T #??#???#???????######???? | | ????????????????# """ #######????????# #????# | | ????????????????## """ ## ???????# #?##?? | | ?????????????????# """= ## #???# #????? | | ?????????????????#%![% ! ## """ #???# #????? | | ?????????????????# """ ## """"" #???# #???#? | | ?????????????????#%"""! ## """"" #???# ##???? | | ?????????????????#!""" ## """"" #?### ##???? | | ?????????????????# ## """ #??# ##### | | ?????????????????# ## %% #??# | | ?????????????????####/#########+#####??# | | ?????????##+######## % %%####### | | ????? ###/# | | ????? ^ #############??? | | ??????? """ """ """ ###########?#????????????? | | ?????????"" """ """ # ???????? ??????? | | ????????""" """ """ # """ """ ?????????????? | | ???????? # """ """ "?????#???? ??? | | ??????? + """ """ T" #??????????? | | ??????? # "" ??????????? | | ??????? # #???#??????? | | ?????????########### ################??????????? | | ???????????????????# !########?#????????????????? | | ???????????????????+ %gg@ !#????#?????????????# | | ???????????????????# =#Y%* #???????????????"??? | | ???????????????????# #%/ * #??????????????????? | | ???????????????????# # #??????????????????? | | ???????????????????# # #??????????????????? | | ???????????????????# # #??????????????????? | | ???????????????????# ########??????????????????? | | ???????????????????# #?????????????????????????? | | ???????????????????# ??????????????????????????? | | ???????????????????# ??????????????????????????? | | ???????????????????# ??????????????????????????? | | ???????????????????# ??????????????????????????? | | ???????????????????# ??????????????????????????? | | ??????????????????? ??????????????????????????? | | ???????????????????? ??????????????????????????? | | ?????????????????????????????????????????????????? | | ?????????????????????????????????????????????????? | | ?????????????????????????????????????????????????? | | ?????????????????????????????????????????????????? | | ?????????????????????????????????????????????????? | | ?????????????????????????????????????????????????? | | ?????????????????????????????????????????????????? | | ?????????????????????????????????????????????????? | | ?????????????????????????????????????????????????? | | ?????????????????????????????????????????????????? | +----------------------------------------------------+ Best States ------------- Heat Dissipation 28 Energy Generation 12 Energy Capacity 265 Matter Stores 300 Matter Capacity 300 Sight Range 16 Terrain Scan Range 16 Terrain Scan Density 10 Evasion (%) 55 Targeting Accuracy 6 Item Schematics ----------------- None Robot Schematics ------------------ None Fabricated ------------ Nothing Alien Tech Used ----------------- None Achievements -------------- None Challenges ------------ None Game ------ Seed ImpactCentriumDrive Manual? 0 Play Time 00:14:02 Cumulative 60.3 hours Start 2023.07.19 @ 17:50:35 End 2023.07.19 @ 18:02:44 Sessions 1 Manual Loads 0 Difficulty Rogue Special Mode None Game No. 81 Rogue 81 Adventurer 0 Explorer 0 Win Type - Total 0 Types 0/0/0/0/0/0/0/0/0 Lore% 22 Gallery% 37 Achievement% 23 Wizard Run 0 Options --------- ASCII 0 Keyboard 0 Movement Mouse Keybinds 0 Fullscreen 1 Font 24/Smallcaps Map View 76x50 Tactical HUD 1 Map Filters NONE Filters NONE Steam 1 RUN: fb1878c3-479d-432c-befb-be841fec03a3